[Event "GER-chT Youth Countries 2020"]
[Site "Berlin"]
[Date "2020.09.30"]
[Round "2"]
[White "Fischer, Juliane"]
[Black "Wilmink, Anna"]
[Result "1-0"]
[ECO "C00"]
[WhiteElo "1509"]
[BlackElo "1608"]
[Annotator "NA"]
[PlyCount "65"]
[EventDate "2020.09.30"]
[EventType "team-tourn"]
[EventRounds "7"]
[EventCountry "GER"]
[SourceTitle "playchess.com"]
[Source "ChessBase"]
[SourceQuality "1"]
[WhiteTeam "Hessen"]
[BlackTeam "Niedersachsen"]
[WhiteTeamCountry "GER"]
[BlackTeamCountry "GER"]
[TimeControl "30/5400+30:0"]

1. e4 {[%emt 0:00:00]} e6 {[%emt 0:00:00]} 2. d4 {[%emt 0:00:00]} d5 {[%emt 0:00:00]} 3. Bd3 {[%emt 0:00:00]} c5 {[%emt 0:00:22]} 4. exd5 {[%emt 0:00:32]} exd5 {[%emt 0:00:21]} 5. dxc5 {[%emt 0:00:47]} Bxc5 {[%emt 0:00:09]} 6. Nc3 {[%emt 0:02:20]} Nf6 {[%emt 0:00:31]} 7. Nge2 {[%emt 0:00:58]} O-O {[%emt 0:00:46]} 8. O-O {[%emt 0:00:36]} Nc6 {[%emt 0:00:42]} 9. Bg5 {[%emt 0:02:51]} h6 {[%emt 0:01:11]} 10. Bh4 {[%emt 0:00:24]} g5 {[%emt 0:01:48]} 11. Bg3 {[%emt 0:00:33]} Nh5 {[%emt 0:03:05]} 12. Qd2 {[%emt 0:01:54]} f5 {[%emt 0:01:21]} 13. Na4 {[%emt 0:03:21]} Bd6 {[%emt 0:03:33]} 14. Bxd6 {[%emt 0:03:08]} Qxd6 {[%emt 0:04:50]} 15. f4 {[%emt 0:01:34]} Qg6 {[%emt 0:04:28]} 16. Nac3 {[%emt 0:08:01]} Ne7 {[%emt 0:03:14]} 17. Nxd5 {[%emt 0:06:05]} Nxd5 {[%emt 0:04:15]} 18. Bc4 {[%emt 0:00:22]} Be6 {[%emt 0:01:04]} 19. Bxd5 {[%emt 0:00:26]} Rad8 {[%emt 0:00:32]} 20. c4 {[%emt 0:03:06]} Kh7 {[%emt 0:03:23]} 21. Qb4 {[%emt 0:04:42]} Bxd5 {[%emt 0:04:59]} 22. cxd5 {[%emt 0:00:25]} Rf7 {[%emt 0:01:26]} 23. Rad1 {[%emt 0:02:41]} Rg7 {[%emt 0:02:04]} 24. g3 {[%emt 0:03:13]} Re8 {[%emt 0:03:37]} 25. Rd2 {[%emt 0:02:21]} Re4 {[%emt 0:01:52]} 26. Qc3 {[%emt 0:06:56]} gxf4 {[%emt 0:01:25]} 27. Rf3 {[%emt 0:00:39]} fxg3 {[%emt 0:02:46]} 28. hxg3 {[%emt 0:00:43]} Rg4 {[%emt 0:02:56]} 29. Kf2 {[%emt 0:01:10]} Qb6+ {[%emt 0:02:52]} 30. Qe3 {[%emt 0:06:38]} Qxe3+ {[%emt 0:01:40]} 31. Kxe3 {[%emt 1:31:15]} Nxg3 {[%emt 1:32:20]} 32. d6 {[%emt 0:06:07]} Nf1+ {[%emt 0:00:32]} 33. Rxf1 {[%emt 0:00:49]} 1-0

[Event "GER-chT Youth Countries 2020"]
[Site "Berlin"]
[Date "2020.09.30"]
[Round "2"]
[White "Herrmann, Jakob"]
[Black "Zhou, Lepu Coco"]
[Result "0-1"]
[ECO "C45"]
[WhiteElo "1504"]
[BlackElo "1872"]
[Annotator "NA"]
[PlyCount "54"]
[EventDate "2020.09.30"]
[EventType "team-tourn"]
[EventRounds "7"]
[EventCountry "GER"]
[SourceTitle "playchess.com"]
[Source "ChessBase"]
[SourceQuality "1"]
[WhiteTeam "Mecklenburg-Vorpommern"]
[BlackTeam "Berlin"]
[WhiteTeamCountry "GER"]
[BlackTeamCountry "GER"]
[TimeControl "30/5400+30:0"]

1. e4 {[%emt 0:00:00]} e5 {[%emt 0:00:00]} 2. Nf3 {[%emt 0:00:00]} Nc6 {[%emt 0:00:00]} 3. d4 {[%emt 0:00:01]} exd4 {[%emt 0:00:00]} 4. Nxd4 {[%emt 0:00:25]} Nf6 {[%emt 0:00:04]} 5. Nxc6 {[%emt 0:01:15]} bxc6 {[%emt 0:00:05]} 6. e5 {[%emt 0:00:05]} Qe7 {[%emt 0:00:06]} 7. Qe2 {[%emt 0:00:34]} Nd5 {[%emt 0:00:05]} 8. c4 {[%emt 0:00:05]} Ba6 {[%emt 0:00:05]} 9. g3 {[%emt 0:00:46]} g6 {[%emt 0:00:15]} 10. b3 {[%emt 0:00:07]} f6 {[%emt 0:00:33]} 11. Bb2 {[%emt 0:04:55]} Bg7 {[%emt 0:00:12]} 12. exf6 {[%emt 0:00:54]} Qxe2+ {[%emt 0:00:17]} 13. Bxe2 {[%emt 0:00:11]} Bxf6 {[%emt 0:01:00]} 14. Bxf6 {[%emt 0:00:51]} Nxf6 {[%emt 0:00:04]} 15. Nc3 {[%emt 0:00:48]} O-O-O {[%emt 0:00:47]} 16. O-O-O {[%emt 0:00:55]} d5 {[%emt 0:02:22]} 17. Rhe1 {[%emt 0:10:12]} Rhe8 {[%emt 0:06:04]} 18. Na4 {[%emt 0:22:42]} dxc4 {[%emt 0:07:38]} 19. Nc5 {[%emt 0:02:19]} Rxd1+ {[%emt 0:02:47]} 20. Kxd1 {[%emt 0:00:14]} Rd8+ {[%emt 0:08:57]} 21. Kc1 {[%emt 0:01:28]} Bb7 {[%emt 0:03:06]} 22. Bxc4 {[%emt 0:00:33]} Nd5 {[%emt 0:00:33]} 23. f4 {[%emt 0:03:50]} Kb8 {[%emt 0:01:46]} 24. Bxd5 {[%emt 0:14:10]} cxd5 {[%emt 0:01:53]} 25. Re7 {[%emt 0:02:04]} h5 {[%emt 0:03:41]} 26. Nd7+ {[%emt 0:01:41]} Kc8 {[%emt 0:04:40]} 27. Ne5 {[%emt 0:00:15]} c5 {[%emt 0:06:03]} 0-1

[Event "GER-chT Youth Countries 2020"]
[Site "Berlin"]
[Date "2020.09.30"]
[Round "2"]
[White "Moldovan, Tatiana"]
[Black "Aumueller, Naum"]
[Result "1-0"]
[ECO "C70"]
[WhiteElo "1480"]
[BlackElo "1690"]
[Annotator "NA"]
[PlyCount "127"]
[EventDate "2020.09.30"]
[EventType "team-tourn"]
[EventRounds "7"]
[EventCountry "GER"]
[SourceTitle "playchess.com"]
[Source "ChessBase"]
[SourceQuality "1"]
[WhiteTeam "Württemberg"]
[BlackTeam "Bayern"]
[BlackTeamCountry "GER"]
[TimeControl "30/5400+30:0"]

1. e4 {[%emt 0:05:49]} e5 {[%emt 0:00:03]} 2. Nf3 {[%emt 0:01:30]} Nc6 {[%emt 0:00:32]} 3. Bb5 {[%emt 0:03:09]} a6 {[%emt 0:01:30]} 4. Ba4 {[%emt 0:00:33]} b5 {[%emt 0:01:20]} 5. Bb3 {[%emt 0:01:00]} Nf6 {[%emt 0:03:39]} 6. d4 {[%emt 0:00:52]} Nxe4 {[%emt 0:14:54]} 7. Qe2 {[%emt 0:01:35]} d5 {[%emt 0:03:58]} 8. Nxe5 {[%emt 0:01:03]} Nxe5 {[%emt 0:12:34]} 9. dxe5 {[%emt 0:07:44]} Bc5 {[%emt 0:09:24]} 10. O-O {[%emt 0:00:54]} Be6 {[%emt 0:01:18]} 11. Be3 {[%emt 0:01:22]} O-O {[%emt 0:01:29]} 12. f3 {[%emt 0:00:44]} Bxe3+ {[%emt 0:01:52]} 13. Qxe3 {[%emt 0:00:49]} Ng5 {[%emt 0:00:36]} 14. h4 {[%emt 0:01:13]} Nh3+ 15. gxh3 {[%emt 0:02:45]} Qxh4 {[%emt 0:02:53]} 16. Qf2 {[%emt 0:00:45]} Qg5+ {[%emt 0:00:39]} 17. Qg2 {[%emt 0:01:12]} Qxe5 {[%emt 0:00:54]} 18. Nc3 {[%emt 0:01:25]} b4 {[%emt 0:02:13]} 19. Na4 {[%emt 0:05:27]} Qe3+ {[%emt 0:10:01]} 20. Kh1 {[%emt 0:01:48]} Rac8 {[%emt 0:04:30]} 21. Rfe1 {[%emt 0:01:38]} Qa7 {[%emt 0:02:00]} 22. Rg1 {[%emt 0:03:34]} g6 {[%emt 0:00:31]} 23. f4 {[%emt 0:00:39]} c6 {[%emt 0:01:17]} 24. Rgf1 {[%emt 0:02:14]} Bf5 {[%emt 0:00:35]} 25. Kh2 {[%emt 0:00:41]} Rfe8 {[%emt 0:01:21]} 26. Qf2 {[%emt 0:00:57]} Re3 {[%emt 0:03:07]} 27. h4 {[%emt 0:02:48]} Rce8 {[%emt 0:02:18]} 28. Rae1 {[%emt 0:04:54]} Qd4 {[%emt 0:10:07]} 29. c3 {[%emt 0:01:51]} bxc3 {[%emt 0:03:45]} 30. bxc3 {[%emt 0:02:58]} Qa7 {[%emt 0:00:23]} 31. Nb2 {[%emt 1:31:56]} Rxe1 {[%emt 1:33:25]} 32. Qxa7 {[%emt 0:00:49]} Rxf1 {[%emt 0:00:01]} 33. Qxa6 {[%emt 0:00:31]} Ree1 {[%emt 0:01:10]} 34. Nd1 {[%emt 0:01:29]} Rh1+ {[%emt 0:01:58]} 35. Kg2 {[%emt 0:00:38]} Rhg1+ {[%emt 0:00:36]} 36. Kf2 {[%emt 0:00:19]} Rxd1 {[%emt 0:00:28]} 37. Bxd1 {[%emt 0:00:13]} Rxd1 {[%emt 0:00:02]} 38. Qxc6 {[%emt 0:00:55]} Rd2+ {[%emt 0:00:57]} 39. Ke3 {[%emt 0:00:22]} Rxa2 {[%emt 0:00:27]} 40. Qxd5 {[%emt 0:00:09]} Be6 {[%emt 0:00:21]} 41. Qd8+ {[%emt 0:00:54]} Kg7 {[%emt 0:00:00]} 42. h5 {[%emt 0:00:00]} Ra4 {[%emt 0:00:00]} 43. Qg5 h6 44. Qe5+ {[%emt 0:00:00]} Kh7 {[%emt 0:00:00]} 45. hxg6+ {[%emt 0:00:00]} Kxg6 {[%emt 0:00:00]} 46. Kf3 {[%emt 0:00:00]} Rc4 {[%emt 0:00:00]} 47. Qe1 {[%emt 0:00:00]} Kf5 {[%emt 0:00:00]} 48. Qe5+ {[%emt 0:00:00]} Kg6 {[%emt 0:00:00]} 49. Ke3 {[%emt 0:00:00]} Rc8 {[%emt 0:00:00]} 50. Kd3 {[%emt 0:00:00]} Rd8+ {[%emt 0:00:00]} 51. Ke4 {[%emt 0:00:00]} Re8 {[%emt 0:00:00]} 52. Kd4 {[%emt 0:00:00]} Rc8 {[%emt 0:00:00]} 53. Ke3 {[%emt 0:00:00]} Rc4 {[%emt 0:00:00]} 54. Kf3 {[%emt 0:00:00]} Rc8 {[%emt 0:00:00]} 55. Kg3 {[%emt 0:00:00]} Rc4 {[%emt 0:00:00]} 56. Kh4 {[%emt 0:00:00]} Bf5 {[%emt 0:00:00]} 57. Qd6+ {[%emt 0:00:00]} Be6 {[%emt 0:00:14]} 58. Qd3+ {[%emt 0:00:00]} Kg7 59. Kg3 Kf6 {[%emt 0:02:03]} 60. f5 {[%emt 0:00:00]} Bd5 {[%emt 0:00:52]} 61. Qxd5 {[%emt 1:23:04]} Rxc3+ 62. Kg4 Rc1 {[%emt 1:31:48]} 63. Qd4+ {[%emt 0:01:00]} Ke7 {[%emt 0:00:13]} 64. Qe3+ 1-0

[Event "GER-chT Youth Countries 2020"]
[Site "Berlin"]
[Date "2020.09.30"]
[Round "2"]
[White "Avetyan, Manan"]
[Black "Fock, Sana"]
[Result "0-1"]
[ECO "B91"]
[WhiteElo "1356"]
[BlackElo "1829"]
[Annotator "NA"]
[PlyCount "34"]
[EventDate "2020.09.30"]
[EventType "team-tourn"]
[EventRounds "7"]
[EventCountry "GER"]
[SourceTitle "playchess.com"]
[Source "ChessBase"]
[SourceQuality "1"]
[WhiteTeam "Mecklenburg-Vorpommern"]
[BlackTeam "Berlin"]
[WhiteTeamCountry "GER"]
[BlackTeamCountry "GER"]
[TimeControl "30/5400+30:0"]

1. e4 {[%emt 0:00:00]} c5 {[%emt 0:00:00]} 2. Nf3 {[%emt 0:00:00]} d6 {[%emt 0:00:00]} 3. d4 {[%emt 0:00:00]} cxd4 {[%emt 0:00:00]} 4. Nxd4 {[%emt 0:00:00]} Nf6 {[%emt 0:00:00]} 5. Nc3 {[%emt 0:00:01]} a6 {[%emt 0:00:00]} 6. g3 {[%emt 0:01:22]} e5 {[%emt 0:01:33]} 7. Nf3 {[%emt 0:01:16]} Be7 {[%emt 0:00:39]} 8. Bg2 {[%emt 0:00:41]} O-O {[%emt 0:00:35]} 9. O-O {[%emt 0:00:36]} b5 {[%emt 0:01:52]} 10. a3 {[%emt 0:03:37]} Bb7 {[%emt 0:00:38]} 11. Re1 {[%emt 0:02:29]} Nbd7 {[%emt 0:01:26]} 12. Nh4 {[%emt 0:25:15]} Re8 {[%emt 0:05:58]} 13. Kh1 {[%emt 0:06:28]} Nb6 {[%emt 0:02:47]} 14. Nf5 {[%emt 0:17:52]} Bf8 {[%emt 0:08:19]} 15. Be3 {[%emt 0:12:53]} Rc8 {[%emt 0:05:21]} 16. f4 {[%emt 0:13:13]} Nc4 {[%emt 0:02:02]} 17. Bc1 {[%emt 0:01:30]} g6 {[%emt 0:04:18]} 0-1

[Event "GER-chT Youth Countries 2020"]
[Site "Berlin"]
[Date "2020.09.30"]
[Round "2"]
[White "Lorenz, Veronika"]
[Black "Khanbekyan, Nare"]
[Result "1-0"]
[ECO "B21"]
[WhiteElo "1273"]
[BlackElo "1334"]
[Annotator "NA"]
[PlyCount "34"]
[EventDate "2020.09.30"]
[EventType "team-tourn"]
[EventRounds "7"]
[EventCountry "GER"]
[SourceTitle "playchess.com"]
[Source "ChessBase"]
[SourceQuality "1"]
[WhiteTeam "Berlin"]
[BlackTeam "Mecklenburg-Vorpommern"]
[WhiteTeamCountry "GER"]
[TimeControl "30/5400+30:0"]

1. e4 {[%emt 0:00:00]} c5 {[%emt 0:00:00]} 2. d4 {[%emt 0:00:01]} cxd4 {[%emt 0:00:00]} 3. c3 {[%emt 0:00:09]} dxc3 {[%emt 0:00:40]} 4. Nxc3 {[%emt 0:00:07]} Nc6 {[%emt 0:00:48]} 5. Nf3 {[%emt 0:00:14]} g6 {[%emt 0:00:32]} 6. Bc4 {[%emt 0:02:27]} Bg7 {[%emt 0:01:47]} 7. Be3 {[%emt 0:02:28]} Nf6 {[%emt 0:01:26]} 8. O-O {[%emt 0:00:46]} O-O {[%emt 0:01:05]} 9. Qe2 {[%emt 0:00:42]} d6 {[%emt 0:01:57]} 10. Rfd1 {[%emt 0:00:39]} Bd7 {[%emt 0:05:30]} 11. Rac1 {[%emt 0:07:50]} Rc8 {[%emt 0:03:57]} 12. Bb3 {[%emt 0:11:28]} Ng4 {[%emt 0:05:30]} 13. Bf4 {[%emt 0:02:17]} Nge5 {[%emt 0:04:27]} 14. Qe3 {[%emt 0:04:02]} a6 {[%emt 0:10:22]} 15. Nd5 {[%emt 0:17:05]} b5 {[%emt 0:09:49]} 16. Nxe5 {[%emt 0:10:59]} Nxe5 {[%emt 0:02:35]} 17. Bg5 {[%emt 0:02:59]} Re8 {[%emt 0:06:38]} 1-0

[Event "GER-chT Youth Countries 2020"]
[Site "Berlin"]
[Date "2020.09.30"]
[Round "2"]
[White "Reich, Elisabeth"]
[Black "Bako, Evelin"]
[Result "1-0"]
[ECO "C47"]
[WhiteElo "1128"]
[BlackElo "1192"]
[Annotator "NA"]
[PlyCount "114"]
[EventDate "2020.09.30"]
[EventType "team-tourn"]
[EventRounds "7"]
[EventCountry "GER"]
[SourceTitle "playchess.com"]
[Source "ChessBase"]
[SourceQuality "1"]
[WhiteTeam "Bayern"]
[BlackTeam "Württemberg"]
[WhiteTeamCountry "GER"]
[BlackTeamCountry "GER"]
[TimeControl "30/5400+30:0"]

1. e4 {[%emt 0:00:00]} e5 {[%emt 0:00:00]} 2. Nf3 {[%emt 0:00:00]} Nf6 {[%emt 0:00:00]} 3. Nc3 {[%emt 0:00:00]} Nc6 {[%emt 0:00:07]} 4. Bc4 {[%emt 0:00:00]} Be7 {[%emt 0:01:13]} 5. O-O {[%emt 0:00:00]} O-O {[%emt 0:01:06]} 6. d3 {[%emt 0:00:04]} d6 {[%emt 0:00:49]} 7. Nd5 {[%emt 0:01:16]} Bg4 {[%emt 0:00:53]} 8. h3 {[%emt 0:00:18]} Bh5 {[%emt 0:01:02]} 9. Be3 {[%emt 0:00:38]} Qd7 {[%emt 0:03:46]} 10. a4 {[%emt 0:00:25]} Nxd5 {[%emt 0:02:51]} 11. Bxd5 {[%emt 0:00:14]} a5 {[%emt 0:07:37]} 12. c3 {[%emt 0:01:54]} Rab8 {[%emt 0:07:20]} 13. d4 {[%emt 0:00:47]} exd4 {[%emt 0:01:31]} 14. Bxd4 {[%emt 0:00:32]} Nxd4 {[%emt 0:01:16]} 15. cxd4 {[%emt 0:00:11]} Bf6 {[%emt 0:00:47]} 16. Qd3 {[%emt 0:00:51]} Rfe8 {[%emt 0:02:59]} 17. Rfe1 {[%emt 0:01:19]} Bg6 {[%emt 0:00:53]} 18. Qc3 {[%emt 0:04:36]} b6 {[%emt 0:01:23]} 19. Bc6 {[%emt 0:00:32]} Qe6 {[%emt 0:01:26]} 20. Bxe8 {[%emt 0:00:22]} Rxe8 {[%emt 0:00:33]} 21. Qxc7 {[%emt 0:00:46]} Bd8 {[%emt 0:00:47]} 22. Qc3 {[%emt 0:01:47]} Bf6 {[%emt 0:01:41]} 23. Qd2 {[%emt 0:01:02]} Qd7 {[%emt 0:00:55]} 24. e5 {[%emt 0:01:27]} dxe5 {[%emt 0:00:23]} 25. dxe5 {[%emt 0:00:13]} Qxd2 {[%emt 0:00:15]} 26. Nxd2 {[%emt 0:00:04]} Rxe5 {[%emt 0:00:50]} 27. Rxe5 {[%emt 0:00:08]} Bxe5 {[%emt 0:00:10]} 28. Nc4 {[%emt 0:00:09]} Bc7 {[%emt 0:00:50]} 29. Rc1 {[%emt 0:00:41]} Bd8 {[%emt 0:01:11]} 30. Nxb6 {[%emt 0:00:30]} Kf8 {[%emt 0:01:22]} 31. Nd7+ {[%emt 1:30:13]} Ke7 {[%emt 1:31:02]} 32. Ne5 {[%emt 0:00:39]} Kf6 {[%emt 0:00:55]} 33. Nxg6 {[%emt 0:00:06]} Kxg6 {[%emt 0:00:10]} 34. Rb1 {[%emt 0:00:07]} Kf6 {[%emt 0:00:20]} 35. b4 {[%emt 0:00:05]} axb4 {[%emt 0:00:13]} 36. Rxb4 {[%emt 0:00:11]} Ke6 {[%emt 0:00:09]} 37. Rb3 {[%emt 0:00:07]} Kd6 {[%emt 0:00:28]} 38. Rb7 {[%emt 0:00:21]} Bc7 {[%emt 0:00:31]} 39. a5 {[%emt 0:00:56]} Bxa5 {[%emt 0:00:30]} 40. Rxf7 {[%emt 0:00:21]} Bc3 {[%emt 0:00:15]} 41. g4 {[%emt 0:00:15]} Bf6 {[%emt 0:00:25]} 42. f4 {[%emt 0:00:26]} Ke6 {[%emt 0:00:40]} 43. Rb7 {[%emt 0:00:13]} Bd4+ {[%emt 0:00:10]} 44. Kg2 {[%emt 0:00:07]} Kf6 {[%emt 0:02:07]} 45. h4 {[%emt 0:00:26]} Kg6 {[%emt 0:01:59]} 46. h5+ {[%emt 0:00:29]} Kh6 {[%emt 0:00:42]} 47. Rd7 {[%emt 0:00:23]} Be3 {[%emt 0:01:46]} 48. Rd6+ {[%emt 0:00:32]} g6 {[%emt 0:00:16]} 49. f5 {[%emt 0:00:23]} Bf4 {[%emt 0:00:43]} 50. Rc6 {[%emt 0:00:59]} Kg5 {[%emt 0:00:43]} 51. hxg6 {[%emt 0:00:26]} hxg6 {[%emt 0:00:19]} 52. Rxg6+ {[%emt 0:00:47]} Kh4 53. f6 {[%emt 0:00:30]} Bd6 54. f7 Bf8 {[%emt 0:02:55]} 55. Rg8 {[%emt 0:01:00]} Bg7 {[%emt 0:00:35]} 56. f8=Q {[%emt 0:00:29]} Bxf8 {[%emt 0:01:09]} 57. Rxf8 {[%emt 0:00:14]} Kxg4 1-0

[Event "GER-chT Youth Countries 2020"]
[Site "Berlin"]
[Date "2020.09.30"]
[Round "2"]
[White "Richter, Johanna"]
[Black "Ottlik, Marie"]
[Result "1/2-1/2"]
[ECO "E65"]
[WhiteElo "1107"]
[BlackElo "1454"]
[Annotator "NA"]
[PlyCount "104"]
[EventDate "2020.09.30"]
[EventType "team-tourn"]
[EventRounds "7"]
[EventCountry "GER"]
[SourceTitle "playchess.com"]
[Source "ChessBase"]
[SourceQuality "1"]
[WhiteTeam "Rheinland-Pfalz"]
[BlackTeam "Sachsen"]
[BlackTeamCountry "GER"]
[TimeControl "30/5400+30:0"]

1. d4 {[%emt 0:00:00]} Nf6 {[%emt 0:00:00]} 2. c4 {[%emt 0:00:00]} g6 {[%emt 0:00:24]} 3. Nc3 {[%emt 0:00:00]} Bg7 {[%emt 0:00:10]} 4. Nf3 {[%emt 0:00:08]} d6 {[%emt 0:00:42]} 5. g3 {[%emt 0:00:12]} O-O {[%emt 0:00:14]} 6. Bg2 {[%emt 0:00:09]} c5 {[%emt 0:01:45]} 7. O-O {[%emt 0:01:22]} Nbd7 {[%emt 0:01:54]} 8. Bf4 {[%emt 0:02:38]} a6 {[%emt 0:01:29]} 9. a4 {[%emt 0:00:19]} Rb8 {[%emt 0:04:58]} 10. b3 {[%emt 0:04:41]} Re8 {[%emt 0:05:10]} 11. Bc1 {[%emt 0:05:01]} Nf8 {[%emt 0:04:11]} 12. Rb1 {[%emt 0:01:24]} Bd7 {[%emt 0:02:26]} 13. b4 {[%emt 0:00:32]} b6 {[%emt 0:04:14]} 14. Ba3 {[%emt 0:00:49]} Ne6 {[%emt 0:05:20]} 15. e3 {[%emt 0:01:18]} Rc8 {[%emt 0:06:44]} 16. Qe2 {[%emt 0:02:43]} Qc7 {[%emt 0:06:50]} 17. d5 {[%emt 0:00:48]} Nf8 {[%emt 0:03:39]} 18. bxc5 {[%emt 0:01:18]} bxc5 {[%emt 0:02:35]} 19. e4 {[%emt 0:01:00]} e6 {[%emt 0:00:54]} 20. Qc2 {[%emt 0:00:54]} Rb8 {[%emt 0:02:50]} 21. Rxb8 {[%emt 0:02:58]} Rxb8 {[%emt 0:01:39]} 22. Nd2 {[%emt 0:00:16]} exd5 {[%emt 0:04:26]} 23. exd5 {[%emt 0:00:22]} Bf5 {[%emt 0:00:22]} 24. Nde4 {[%emt 0:01:27]} Nxe4 {[%emt 0:02:06]} 25. Nxe4 {[%emt 0:00:46]} Nd7 {[%emt 0:04:07]} 26. Bc1 {[%emt 0:02:06]} Nf6 {[%emt 0:02:17]} 27. Bf4 {[%emt 0:01:25]} Nxe4 {[%emt 0:01:08]} 28. Bxe4 {[%emt 0:00:36]} Rb2 {[%emt 0:01:53]} 29. Qd3 {[%emt 0:00:50]} Bd7 {[%emt 0:02:31]} 30. Qa3 {[%emt 0:02:59]} Re2 {[%emt 0:01:58]} 31. Be3 {[%emt 1:31:27]} Qa5 {[%emt 1:33:39]} 32. Rb1 {[%emt 0:01:20]} Re1+ {[%emt 0:00:49]} 33. Rxe1 {[%emt 0:01:06]} Qxe1+ {[%emt 0:00:26]} 34. Kg2 {[%emt 0:00:15]} Qb4 {[%emt 0:00:31]} 35. Qxb4 {[%emt 0:01:04]} cxb4 {[%emt 0:00:19]} 36. Bc2 {[%emt 0:00:09]} Kf8 {[%emt 0:01:03]} 37. Kf1 {[%emt 0:00:31]} Bg4 {[%emt 0:01:10]} 38. Ke1 {[%emt 0:00:28]} Bc3+ {[%emt 0:00:34]} 39. Bd2 {[%emt 0:01:17]} Bxd2+ {[%emt 0:00:41]} 40. Kxd2 {[%emt 0:00:09]} a5 {[%emt 0:00:09]} 41. Ke3 {[%emt 0:00:59]} Bf5 {[%emt 0:02:12]} 42. Bb3 {[%emt 0:00:14]} Ke7 {[%emt 0:00:31]} 43. f3 {[%emt 0:00:44]} h5 {[%emt 0:01:11]} 44. Kd4 {[%emt 0:00:35]} Kd7 {[%emt 0:04:07]} 45. Ke3 {[%emt 0:00:32]} g5 {[%emt 0:01:27]} 46. h4 {[%emt 0:02:17]} f6 {[%emt 0:00:50]} 47. Bd1 {[%emt 0:01:38]} Bb1 {[%emt 0:01:55]} 48. Bb3 {[%emt 0:00:15]} Bf5 {[%emt 0:01:18]} 49. Bd1 {[%emt 0:00:10]} Bb1 {[%emt 0:00:25]} 50. Bb3 {[%emt 0:00:05]} Bf5 {[%emt 0:00:31]} 51. Bd1 {[%emt 0:00:18]} Bb1 {[%emt 0:00:58]} 52. Bb3 {[%emt 0:00:00]} Bf5 {[%emt 0:00:00]} 1/2-1/2

[Event "GER-chT Youth Countries 2020"]
[Site "Berlin"]
[Date "2020.09.30"]
[Round "2"]
[White "Heuberger, Sandra"]
[Black "Trunz, Michelle"]
[Result "0-1"]
[ECO "A85"]
[WhiteElo "1004"]
[BlackElo "1662"]
[Annotator "NA"]
[PlyCount "104"]
[EventDate "2020.09.30"]
[EventType "team-tourn"]
[EventRounds "7"]
[EventCountry "GER"]
[SourceTitle "playchess.com"]
[Source "ChessBase"]
[SourceQuality "1"]
[WhiteTeam "Brandenburg"]
[BlackTeam "Nordrhein-Westfalen"]
[WhiteTeamCountry "GER"]
[BlackTeamCountry "GER"]
[TimeControl "30/5400+30:0"]

1. d4 f5 2. c4 Nf6 3. Nc3 e6 4. Nf3 d5 5. Bg5 c6 6. e3 Be7 7. Be2 O-O 8. O-O Bd7 9. Rc1 Be8 10. Ne5 Nbd7 11. Bf3 Ne4 12. Bxe7 Qxe7 13. Be2 Qg5 14. cxd5 exd5 15. Qd3 Qe7 16. Nxd7 {[%emt 0:23:20]} Bxd7 {[%emt 0:12:16]} 17. f3 {[%emt 0:01:01]} Nd6 {[%emt 0:01:04]} 18. Rce1 {[%emt 0:01:18]} Nc4 {[%emt 0:00:37]} 19. b3 {[%emt 0:07:26]} Qxe3+ {[%emt 0:02:23]} 20. Qxe3 {[%emt 0:01:38]} Nxe3 {[%emt 0:00:08]} 21. Rf2 {[%emt 0:00:43]} f4 {[%emt 0:01:19]} 22. Bd3 {[%emt 0:01:22]} Rae8 {[%emt 0:01:14]} 23. h3 {[%emt 0:00:46]} Bf5 {[%emt 0:02:11]} 24. Bxf5 {[%emt 0:00:57]} Nxf5 {[%emt 0:00:52]} 25. Rxe8 {[%emt 0:00:34]} Rxe8 {[%emt 0:00:13]} 26. Ne2 {[%emt 0:00:24]} g5 {[%emt 0:00:18]} 27. Kh2 {[%emt 0:00:50]} Re3 {[%emt 0:00:56]} 28. Kg1 {[%emt 0:01:18]} Rd3 {[%emt 0:00:24]} 29. Kh2 {[%emt 0:01:25]} Rd2 {[%emt 0:01:35]} 30. Kg1 {[%emt 0:00:51]} Rxa2 {[%emt 0:00:44]} 31. b4 {[%emt 1:33:54]} a6 {[%emt 1:30:46]} 32. Nc1 {[%emt 0:02:11]} Rxf2 {[%emt 0:00:40]} 33. Kxf2 {[%emt 0:00:08]} Nxd4 {[%emt 0:00:03]} 34. Nd3 {[%emt 0:00:14]} Ne6 {[%emt 0:01:22]} 35. Ke2 {[%emt 0:01:10]} Kf7 {[%emt 0:01:23]} 36. Ne5+ {[%emt 0:00:29]} Ke7 {[%emt 0:00:13]} 37. Kd3 {[%emt 0:00:18]} Kd6 {[%emt 0:01:24]} 38. Kc3 {[%emt 0:03:32]} Kxe5 {[%emt 0:00:00]} 39. Kd3 {[%emt 0:00:12]} c5 {[%emt 0:00:00]} 40. bxc5 {[%emt 0:00:15]} Nxc5+ {[%emt 0:00:00]} 41. Kd2 {[%emt 0:00:13]} d4 {[%emt 0:00:00]} 42. Ke2 {[%emt 0:00:13]} d3+ {[%emt 0:00:00]} 43. Kd2 {[%emt 0:00:00]} Kd4 {[%emt 0:00:00]} 44. Kd1 {[%emt 0:00:02]} Ke3 {[%emt 0:00:02]} 45. Ke1 {[%emt 0:00:12]} d2+ {[%emt 0:00:08]} 46. Kd1 {[%emt 0:00:14]} Nd3 {[%emt 0:00:34]} 47. Kc2 {[%emt 0:00:15]} Ke2 48. Kc3 {[%emt 0:00:09]} d1=Q {[%emt 0:00:59]} 49. Kc4 {[%emt 0:00:07]} Qc2+ {[%emt 0:00:36]} 50. Kd5 Qc6+ 51. Kd4 {[%emt 0:00:42]} Qc5+ {[%emt 0:00:37]} 52. Ke4 Qe5# 0-1